Cogmind - Beta 15 @@@ ROGUE MODE // 2025.05.18 @ 15:38:34 Player: Lunace Result: Self-destructed Performance ------------- Evolutions (4) 2000 Regions Visited (4) 800 Robots Destroyed (23) 115 Value Destroyed (801) 801 Prototype IDs (11) 220 Alien Tech Used (0) 0 Bonus (800) 800 TOTAL SCORE: 4736 Bonus ------- Registered with UFD 300 Met Optimus in HQ 500 Cogmind --------- Core Integrity 645/850 Matter 280/300 Energy 325/325 System Corruption 1% Temperature Cool (0) Movement Treading (320) Ox2 Location -6/Factory Parts ------- > --- POWER (2) -------- Deuterium Engine Light Angular Momentum Engine > --- PROPULSION (4) --- Light Treads Advanced Treads > --- UTILITY (7) ------ Improved Heat Sink Advanced Heat Sink Disposable Heat Sink Disposable Heat Sink Large Storage Unit Improved Light Armor Plating > --- WEAPON (2) ------- Flak Gun > --- INVENTORY (15) --- Cooled Aerolev Unit Cooled Aerolev Unit Cooled Aerolev Unit Medium Storage Unit Energy Well (350) Authchip [R/Combat] Improved Lightning Gun Heavy Pick DRS Beacon (Ready) Botcube Peak State ------------ > --- POWER ------------ Deuterium Engine Light Angular Momentum Engine > --- PROPULSION ------- Light Treads Light Treads Light Treads Advanced Treads > --- UTILITY ---------- Improved Heat Sink Advanced Heat Sink Disposable Heat Sink Disposable Heat Sink Large Storage Unit Improved Light Armor Plating Improved Medium Armor Plating > --- WEAPON ----------- Improved Lightning Gun High-powered Field Laser > --- INVENTORY -------- Cooled Aerolev Unit Cooled Aerolev Unit Cooled Aerolev Unit Medium Storage Unit Energy Well Authchip [R/Combat] Flak Gun Heavy Pick DRS Beacon Botcube [Rating: 50] Favorites ----------- Power Deuterium Engine Engine Deuterium Engine Propulsion Light Treads Treads Light Treads Hover Unit Cooled Aerolev Unit Utility Small Storage Unit Device Seismic Detector Storage Small Storage Unit Protection Improved Medium Armor Plating Weapon Assault Rifle Energy Gun Small Laser Energy Cannon Subdweller Beam Cannon Ballistic Gun Assault Rifle Ballistic Cannon Heavy Flak Cannon Build | -11 -10 -10 -9 -6 ------- Run | Yrd Mat Sub Scr Fac Slots Evolved 8 | . . . . 8 Power 1 | . . . . 1 Propulsion 2 | . . . . 2 Utility 5 | . . . . 5 Weapon . | . . . . . Parts Attached 26 | 7 . 1 4 14 Power 3 | 1 . . 1 1 Engine 3 | 1 . . 1 1 Core . | . . . . . Reactor . | . . . . . Propulsion 5 | 2 . . . 3 Treads 4 | 2 . . . 2 Leg . | . . . . . Wheel . | . . . . . Hover 1 | . . . . 1 Flight . | . . . . . Utility 11 | 2 . . 2 7 Device 5 | 1 . . . 4 Storage 3 | 1 . . 1 1 Processor . | . . . . . Hackware . | . . . . . Protection 3 | . . . 1 2 Artifact . | . . . . . Weapon 7 | 2 . 1 1 3 Energy Gun 3 | 1 . . . 2 Energy Cannon 1 | . . 1 . . Ballistic Gun 2 | 1 . . . 1 Ballistic Cannon 1 | . . . 1 . Launcher . | . . . . . Special Weapon . | . . . . . Impact Weapon . | . . . . . Slashing Weapon . | . . . . . Piercing Weapon . | . . . . . Special Melee Weapon . | . . . . . Unidentified Prototypes 3 | . . . . 3 Parts Lost 4 | . . . . 4 Power . | . . . . . Propulsion 2 | . . . . 2 Utility 2 | . . . . 2 Weapon . | . . . . . Highest Loss Streak 3 | . . . . 3 To Critical Strikes . | . . . . . Average Backups 6 | 1 2 3 7 7 Power . | . 1 1 . . Propulsion . | . . . . 2 Utility 3 | . . . 4 4 Weapon 1 | . 1 1 1 1 Tool/Special . | . . . . . Unused Backups 12 | . . 1 3 8 Power 1 | . . . 1 . Propulsion 5 | . . . . 5 Utility 2 | . . . . 2 Weapon 4 | . . 1 2 1 Tool/Special . | . . . . . Average Slot Usage (%) 95 | . 100 100 100 80 Engine 12 | . 14 14 14 7 Treads 26 | . 28 28 28 22 Device 10 | . 14 14 6 18 Storage 12 | . 14 14 14 6 Protection 7 | . . . 7 10 Energy Gun 2 | . 14 6 . 5 Energy Cannon 1 | . . 7 1 . Ballistic Gun 11 | . 14 14 14 3 Ballistic Cannon 9 | . . . 12 3 Peak Build Rating 50 | 7 7 8 20 50 Average Rating 18 | 5 7 7 15 38 On Entrance 8 | . 7 7 8 20 Naked Turns . | . . . . . Heaviest Build 61 | 14 14 21 36 61 Greatest Support 82 | 40 40 40 40 82 Greatest Overweight (x) 1 | 1 . . . . Average Overweight (x) . | . . . . . Largest Inventory Capacity 15 | 8 8 8 10 15 Average Capacity 9 | 7 8 8 8 12 Most Carried 11 | 2 3 5 10 11 Average Carried 7 | 1 2 3 7 9 Final Capacity 15 | 8 8 8 10 15 Final Carried 10 | 2 3 5 10 10 Class Distribution -------------------- 83% | Mutant 16% | Scavenger-Mutant Dominant Class ---------------- Mutant | -10/Materials Mutant | -10/Subcaves Mutant | -9/Scraptown Scavenger-Mutant | -6/Factory Resources | -11 -10 -10 -9 -6 ----------- Run | Yrd Mat Sub Scr Fac Matter Collected 862 | 297 . 16 30 519 Remotely . | . . . . . Salvage Created 1034 | 79 . . . 955 Parts 38 | 6 . . . 32 Haulers Intercepted 2 | . . . . 2 Recyclers Shooed 3 | . . . . 3 Parts Field Recycled . | . . . . . Retrieved Matter . | . . . . . Parts Self-Destructed 4 | . . 4 . . Prevented . | . . . . . Kills | -11 -10 -10 -9 -6 ------- Run | Yrd Mat Sub Scr Fac Combat Hostiles Destroyed 13 | . . . . 13 Guns 5 | . . . . 5 Cannons 4 | . . . . 4 AOE 2 | . . . . 2 Classes Destroyed 8 | 1 . . . 7 Worker 2 | . . . . 2 Builder 1 | . . . . 1 Tunneler 3 | 3 . . . . Hauler 2 | . . . . 2 Recycler 2 | . . . . 2 Swarmer 3 | . . . . 3 Grunt 7 | . . . . 7 Sentry 3 | . . . . 3 Best Kill Streak 4 | 2 . . . 4 Combat Bots Only 4 | . . . . 4 Max Kills in Single Turn 2 | 1 . . . 2 Gunslinging . | . . . . . Exploded 2 | . . . . 2 Melee . | . . . . . Uniques/NPCs Destroyed . | . . . . . Combat | -11 -10 -10 -9 -6 -------- Run | Yrd Mat Sub Scr Fac Hostile Shots Fired 147 | . . 4 . 143 Missed 51 | . . 1 . 50 Hits 96 | . . 3 . 93 Projectile 96 | . . 3 . 93 Critical Strikes 7 | . . . . 7 Part Disruptions 1 | . . . . 1 Damage Taken 1403 | . . 70 . 1333 Core 255 | . . 50 . 205 Absorbed by Shields . | . . . . . Core Remaining (%) 90 | 100 . . 80 . Volleys Fired 67 | 9 . 2 . 56 Largest 2 | 2 . 2 . 2 Hottest 130 | 60 . 60 . 130 Shots Fired 134 | 18 . 4 . 112 Gun 103 | 18 . 4 . 81 Cannon 31 | . . . . 31 Launcher . | . . . . . Special . | . . . . . Kinetic 78 | 9 . 2 . 67 Thermal 36 | 9 . 2 . 25 Explosive . | . . . . . Electromagnetic 20 | . . . . 20 Robot Hit Streak 10 | 4 . 3 . 10 Robot Miss Streak 10 | 1 . 1 . 10 Penetration Max . | . . . . . Secondary Targets . | . . . . . Shots Hit Robots 106 | 13 . 3 . 90 Core Hits 85 | 3 . 1 . 81 Critical Kills . | . . . . . Critical Parts Destroyed . | . . . . . Critical Strikes 4 | . . . . 4 Burn 3 | . . . . 3 Corrupt 1 | . . . . 1 Melee Attacks . | . . . . . Impact . | . . . . . Slashing . | . . . . . Piercing . | . . . . . Sneak Attacks . | . . . . . Combat Hostiles . | . . . . . Follow-up Attacks . | . . . . . Damage Inflicted 2546 | 155 . 36 . 2355 Guns 1562 | 155 . 36 . 1371 Cannons 713 | . . . . 713 Explosions 271 | . . . . 271 Melee . | . . . . . Ramming . | . . . . . Kinetic 1397 | 89 . 24 . 1284 Thermal 698 | 66 . 12 . 620 Explosive . | . . . . . Electromagnetic 451 | . . . . 451 Impact . | . . . . . Slashing . | . . . . . Piercing . | . . . . . Highest Corruption 1 | . . . . 1 Average Corruption 1 | . . . . 1 Corruption Purged . | . . . . . Corruption Blocked . | . . . . . Overload Shots . | . . . . . Overflow Damage . | . . . . . Projectiles . | . . . . . Explosions . | . . . . . Melee . | . . . . . Knockbacks 15 | . . . . 15 Impact . | . . . . . Kinetic 14 | . . . . 14 Secondary 1 | . . . . 1 Self-Inflicted Damage 33 | . . . . 33 Shots 1 | . . . . 1 Rammed . | . . . . . Targets Rammed . | . . . . . Kicked . | . . . . . Crushed . | . . . . . Highest Temperature 15 | . . . . 15 Average Temperature 7 | . . . . 7 Received Heat Transfer 432 | . . 21 . 411 Siege Activations . | . . . . . Martial Activations . | . . . . . Shielding Activations . | . . . . . Robots Disrupted . | . . . . . Combat Hostiles . | . . . . . Robots Corrupted 2 | . . . . 2 Combat Hostiles 2 | . . . . 2 Parts Fried 1 | . . . . 1 Impact Corruptions . | . . . . . Robots Melted . | . . . . . Combat Hostiles . | . . . . . Parts Melted . | . . . . . Heat Transferred 1102 | 150 . 25 . 927 Parts Sabotaged . | . . . . . Parts Stolen . | . . . . . Parts Stripped . | . . . . . Power Chain Reactions . | . . . . . Alert | -11 -10 -10 -9 -6 ------- Run | Yrd Mat Sub Scr Fac Maximum Alert Level 1 | . . . . 1 Low Security (%) 87 | 100 100 . . 81 Level 1 12 | . . . . 18 Level 2 . | . . . . . Level 3 . | . . . . . Level 4 . | . . . . . Level 5 . | . . . . . High Security . | . . . . . Max Security . | . . . . . Peak Influence 394 | 10 . . . 394 Initial . | . . . . . Average 87 | 1 . . . 126 Influence Increases 613 | 15 . . . 598 Destroy 0b10 Robot/C 260 | . . . . 260 Destroy 0b10 Robot/NC 50 | 15 . . . 35 Destroy Leader 64 | . . . . 64 Disable Machine 45 | . . . . 45 Anti-Garrison Action 150 | . . . . 150 Destroy Structure 14 | . . . . 14 Lose Combat Pursuer 30 | . . . . 30 Influence Decreases 281 | 15 . . . 266 Time Decay 241 | 15 . . . 226 Lost Part 40 | . . . . 40 Squads Dispatched 10 | . 1 . . 9 Investigation 1 | . . . . 1 Extermination 1 | . . . . 1 Reinforcement 5 | . 1 . . 4 Assault 2 | . . . . 2 Garrison 1 | . . . . 1 Intercept . | . . . . . Searches Triggered . | . . . . . Construction Impeded . | . . . . . Haulers Reinforced 1 | . . . . 1 Active Scanning Responses . | . . . . . Cargo Convoy Interrupts . | . . . . . Stealth | -11 -10 -10 -9 -6 --------- Run | Yrd Mat Sub Scr Fac Distress Signals 1 | . . . . 1 Communications Jammed . | . . . . . Distress Signals . | . . . . . Times Spotted 24 | . 1 4 . 19 Peak Tracking Total 4 | . . 2 . 4 Tactical Retreats 2 | . . . . 2 Traps | -11 -10 -10 -9 -6 ------- Run | Yrd Mat Sub Scr Fac Traps Triggered . | . . . . . Indirectly . | . . . . . Trap Hack Attempts . | . . . . . Triggered . | . . . . . Disarmed . | . . . . . Reprogrammed . | . . . . . Reused . | . . . . . Traps Extracted . | . . . . . Installed . | . . . . . Triggered . | . . . . . Machines | -11 -10 -10 -9 -6 ---------- Run | Yrd Mat Sub Scr Fac Machines Disabled 4 | . . . . 4 Max in Single Turn 3 | . . . . 3 Garrison Access 1 | . . . . 1 Machines Repaired . | . . . . . Machines Dismantled . | . . . . . Machines Sabotaged . | . . . . . Overloaded Fab Kills . | . . . . . Hacking | -11 -10 -10 -9 -6 --------- Run | Yrd Mat Sub Scr Fac Machines Accessed 6 | . . . 4 2 Terminals 2 | . . . . 2 Fabricators . | . . . . . Repair Stations . | . . . . . Recycling Units . | . . . . . Scanalyzers . | . . . . . Garrison Access . | . . . . . Total Hacks 13 | . . . 9 4 Successful 9 | . . . 9 . Failed 4 | . . . . 4 Catastrophic 2 | . . . . 2 Database Lockouts . | . . . . . Manual . | . . . . . Terminals 4 | . . . . 4 Fabricators . | . . . . . Repair Stations . | . . . . . Recycling Units . | . . . . . Scanalyzers . | . . . . . Garrison Access . | . . . . . Terminal Hacks 9 | . . . 9 . Record 4 | . . . 4 . Robot Analysis 4 | . . . 4 . Proto ID Catalog 1 | . . . 1 . Fabricator Hacks . | . . . . . Repair Station Hacks . | . . . . . Recycling Unit Hacks . | . . . . . Scanalyzer . | . . . . . Garrison Access Hacks . | . . . . . Unauthorized Hacks . | . . . . . Terminals . | . . . . . Fabricators . | . . . . . Repair Stations . | . . . . . Recycling Units . | . . . . . Scanalyzers . | . . . . . Garrison Access . | . . . . . Data Cores Recovered . | . . . . . Used . | . . . . . Hacking Detections 2 | . . . . 2 Full Trace Events 1 | . . . . 1 Feedback Events . | . . . . . Feedback Blocked . | . . . . . Robot Schematics Acquired . | . . . . . Robots Built . | . . . . . Authchips . | . . . . . Time . | . . . . . Total Robot Build Rating . | . . . . . Part Schematics Acquired . | . . . . . Parts Built . | . . . . . Authchips . | . . . . . Time . | . . . . . Total Part Build Rating . | . . . . . Parts Repaired . | . . . . . Time . | . . . . . Parts Recycled . | . . . . . Recycled Matter . | . . . . . Retrieved Matter . | . . . . . Retrieved Components . | . . . . . Parts Scanalyzed . | . . . . . Part Schematics Acquired . | . . . . . Parts Damaged . | . . . . . Bothacking | -11 -10 -10 -9 -6 ------------ Run | Yrd Mat Sub Scr Fac Used RIF Installer . | . . . . . Robots Hacked . | . . . . . Non-combat . | . . . . . Combat . | . . . . . Robot Hacks Applied . | . . . . . Relay Couplers Released 1 | . . . . 1 Machine Destruction 1 | . . . . 1 Fabnet Peak Effective % . | . . . . . Robots Rewired . | . . . . . Allies Hacked . | . . . . . Hacks Repelled . | . . . . . Allies | -11 -10 -10 -9 -6 -------- Run | Yrd Mat Sub Scr Fac Total Allies . | . . . . . Largest Group . | . . . . . Highest-Rated Group . | . . . . . Highest-Rated Ally . | . . . . . Total Orders . | . . . . . Ally Attacks . | . . . . . Total Damage . | . . . . . Kills . | . . . . . Allies Corrupted . | . . . . . Allies Melted . | . . . . . Intel | -11 -10 -10 -9 -6 ------- Run | Yrd Mat Sub Scr Fac Active Infowar (turns) 1169 | 30 65 243 831 . Seismic 1169 | 30 65 243 831 . Robot Analysis Total 4 | . . . 4 . Derelict Logs Recovered 1 | . . . 1 . Drone Launches . | . . . . . Drone Recoveries . | . . . . . Exploration | -11 -10 -10 -9 -6 ------------- Run | Yrd Mat Sub Scr Fac Turns Passed 2704 | 170 65 243 1695 531 Spaces Moved 1511 | 83 41 144 1049 194 Core 4 | 4 . . . . Treads 1507 | 79 41 144 1049 194 Legs . | . . . . . Wheels . | . . . . . Hover . | . . . . . Flight . | . . . . . Fastest Speed 50 | 50 160 160 160 156 Average Speed 159 | 155 160 160 160 157 Slowest Speed 160 | 160 160 160 160 160 Overloaded Moves . | . . . . . Propulsion Burnouts . | . . . . . Robots Hopped . | . . . . . Potential Cave-ins . | . . . . . Cave-ins Triggered . | . . . . . Exploration Rate (%) 23 | 5 11 14 83 6 Regions Visited 4 Branch Regions 2 Pre-discovered Areas 1 | . . . 1 . Known Exits Taken . | . . . . . Unknown Exits Taken 4 | 1 1 1 1 . Scrap Searched 4 | . . . 4 . Spaces Dug . | . . . . . Terrain Destroyed 17 | . . . . 17 Melee . | . . . . . Projectile . | . . . . . AOE 17 | . . . . 17 Terrain Rammed . | . . . . . Walls Destroyed . | . . . . . Machines Disabled . | . . . . . Actions | -11 -10 -10 -9 -6 --------- Run | Yrd Mat Sub Scr Fac Total 1670 | 103 41 153 1068 305 Wait 32 | 3 . 2 . 27 Move 1507 | 82 40 143 1048 194 Hop . | . . . . . Pick Up 19 | 2 1 3 9 4 Fast Attach 20 | 7 . 1 2 10 Attach 5 | . . . . 5 Detach 3 | . . . . 3 Swap 3 | . . . 2 1 Drop 14 | . . 2 7 5 Fire 67 | 9 . 2 . 56 Melee . | . . . . . Ram . | . . . . . Kick . | . . . . . Crush . | . . . . . Escape Stasis . | . . . . . Rewire . | . . . . . Trap . | . . . . . Miscellaneous . | . . . . . Route ------- -11/Scrapyard -10/Materials -10/Subcaves -9/Scraptown -6/Factory History --------- Turn | Location | Event 16 | -11/Scrapyard | Discovered new exit (range 15) 171 | -11/Scrapyard | Entered Materials 172 | -10/Materials | Met a group of wandering Federalists 233 | -10/Materials | Discovered new exit (range 3) 236 | -10/Materials | Entered Subcaves 237 | -10/Subcaves | Continued accompanying wandering Federalists (5) 237 | -10/Subcaves | Approached by a straggling Scientist 305 | -10/Subcaves | Build established: Mutant 410 | -10/Subcaves | A swath of the cavern ceiling suddenly collapsed 441 | -10/Subcaves | Lost 3 allies 469 | -10/Subcaves | Wandering Federalist uncovered a shortcut to Scraptown 479 | -10/Subcaves | Entered Scraptown 572 | -9/Scraptown | Visited UFD Registry 572 | -9/Scraptown | Registered with UFD as "Pyrosplitter" 595 | -9/Scraptown | Visited The Evicted 614 | -9/Scraptown | Visited Junk Repository 723 | -9/Scraptown | Scanned Subdweller tech in exchange for log data 729 | -9/Scraptown | Learned location of Warlord (-4) 793 | -9/Scraptown | Visited Red Mages 815 | -9/Scraptown | Visited Spacefarers 825 | -9/Scraptown | Visited Cyclists 837 | -9/Scraptown | Entered Cyclist Reading Room 1238 | -9/Scraptown | Visited Symbiants 1485 | -9/Scraptown | Visited Junk Cannon Lab 1517 | -9/Scraptown | Visited Abandonware Association 1533 | -9/Scraptown | Learned abandonware demo "REVENGE.EXE" 1568 | -9/Scraptown | Visited Scrapoid Pod Storage 1717 | -9/Scraptown | Visited LU-1G1's Boring Crew 1768 | -9/Scraptown | Visited Derelict Rescue Squad 1778 | -9/Scraptown | Found DRS Beacon 1806 | -9/Scraptown | Visited Junk Repository 1836 | -9/Scraptown | Visited Analyses Database 1871 | -9/Scraptown | Visited Botcube Research 1878 | -9/Scraptown | Found Botcube 1910 | -9/Scraptown | Visited Science Guys 1964 | -9/Scraptown | Visited Curators Association 2086 | -9/Scraptown | Met Optimus 2086 | -9/Scraptown | Accepted into 0bPrime 2167 | -9/Scraptown | Discovered new exit (range 5) 2174 | -9/Scraptown | Entered Factory 2174 | -6/Factory | Evolved 8 slots: Power x1, Propulsion x2, Utility x5 2526 | -6/Factory | Build established: Scavenger-Mutant 2592 | -6/Factory | Garrison activated, responded to threat 2657 | -6/Factory | Spotted B-75 Beast 2705 | -6/Factory | Self-destructed Last Messages --------------- 02623_ U-05 Engineer builds a Wall. 02624_ U-05 Engineer lays Concrete. 02625_ U-05 Engineer builds a Wall. 02653_ W-25 Informer sends out distress signal. 02671_ Acquired Imp. Light Armor Plating. 02676_ Acquired 25 matter. 02690_ ALERT: Suspicious intruders detected, dispatching Specialist reinforcements to area. 02693_ P-60 Hacker suffers critical hit (Burn). 02697_ Imp. Medium Armor Plating destroyed. 02699_ Destroyed Shock Rifle. 02699_ P-60 Hacker suffers critical hit (Burn). 02700_ Lgt. Treads destroyed. 02700_ K-01 Serf destroyed. 02703_ Hpw. Field Laser blasted off. 02703_ Lgt. Treads destroyed. 02703_ U-05 Engineer lays Concrete. 02704_ H-61 Shepherd calls for reinforcements. 02704_ ALERT: Suspicious intruders detected, dispatching Specialist reinforcements to area. Map ----- +----------------------------------------------------+ | ????????????????????????????????###+########### | | ??????????????????????########### [ | | ?????????????????????? """ | | ????????????????????????## "T" ^ | | ?????????????????????????# " " """ ########## | | ?????????????????????????# ^""" #??????????? | | ????????????????########## """ #??????????? | | ????????????????# # #??????????? | | ????????????????#"" """" +^ """ """ #??????????? | | ????????????????#"" """" #^ """ """ #??????????? | | ????????????????#"T """" # """ """ #??????????? | | ????????????????#"" """" # #??????????? | | ????????????????#"" """" + ########## | | ????????????????# """" # | | ????????????????# ! """" ## | | ????????????????# ## | | ????????????????########### ######+##############? | | ???????????????????########/## uu #?????????? | | ???????????????????# H ! #?????????? | | ???????????????????# """""" #?????????? | | ???????????????????# """""" #?????????? | | ???????????????????# """""" #?????????? | | ???????????????????# """" " % """ #?????????? | | ??????????????????# """ #?????????? | | ?????????????????# """ #?????????? | | ? ????????????##### % @ ####?????????? | | ###+############T ######p## # #????????????? | | % #??????##????????????? | | #????????????????????? | | = #????????????????????? | | !%! !! #????????????????????? | | = ! = k #????????????????????? | | #################+##### #????????????????????? | | #?????????????? #??# H #????????????????????? | | #????????????" " " #??# #????????????????????? | | #??????????" " " " #??# + ???????????????????? | | #????????" " " " " #??# # ?????????????????? | | #????????" " " " " #??# # ????????????????? | | #????????" " " " " #??# #? ???????????????? | | #??????????" " " ? #??? #?? ????????????????? | | ???????????" " " ? #??? #????????????????????? | | ?????????????" " ? #??? #????????????????????? | | ???????????????" ? #??? ?#????????????????????? | | ???????????????? ? ????? ????????????????????????? | | ?????????????????????????????????????????????????? | | ?????????????????????????????????????????????????? | | ?????????????????????????????????????????????????? | | ?????????????????????????????????????????????????? | | ?????????????????????????????????????????????????? | | ?????????????????????????????????????????????????? | +----------------------------------------------------+ Best States ------------- Heat Dissipation 70 Coolant Potential 100 Energy Generation 27 Energy Capacity 325 Matter Stores 300 Matter Capacity 300 Sight Range 16 Terrain Scan Density 10 Armor Coverage 375 Evasion (%) 40 Recoil Reduction 4 Authchip Count 1 Item Schematics ----------------- None Robot Schematics ------------------ None Fabricated ------------ Nothing Repaired ---------- Nothing Alien Tech Used ----------------- None Achievements -------------- None Challenges ------------ None Game ------ Seed MasterFlightWell Manual? 0 Play Time 00:14:38 Cumulative 410.9 hours Start 2025.05.18 @ 15:21:28 End 2025.05.18 @ 15:38:34 Sessions 1 Manual Loads 0 Difficulty Rogue Special Mode None Game No. 408 Rogue 403 Adventurer 5 Explorer 0 Win Type - Total 9 Types 6/0/0/3/0/0/0/0/0/0 Lore% 82 Gallery% 79 Achievement% 71 Wizard Run 0 Options --------- Layout 1 ASCII 0 Keyboard 0 Movement Arrows Keybinds 0 Fullscreen 1 Font 24/Terminus Map View 50x35 Zoom Use 0% Tactical HUD 1 Map Filters NONE Filters NONE Steam 1 RUN: 88f5dfad-0876-4372-a33f-efd4fa922b94